fUST/lending_fUST_20240404
["ID","MTS","AMOUNT","RATE_DAILY","PERIOD"]
[321486385,1712237435627,-1861.89491029,0.00036743,4]
[321486386,1712237435640,-500.0,0.00036744,15]
[321486387,1712237435651,-500.0,0.00036744,15]
[321486388,1712237435662,-169.15163635,0.00036744,15]
[321486389,1712237435675,-337.005144,0.00036745,120]
[321486390,1712237435686,-24900.0,0.00036745,2]
[321486391,1712237435699,-174.5071792,0.00038051,2]
[321486392,1712237435710,-281.86515092,0.0003849,2]
[321486393,1712237435722,-242.23655039,0.00038588,4]
[321486394,1712237435734,-414.01368326,0.00038588,4]
[321486395,1712237435746,-329.57798133,0.00038588,4]
[321486396,1712237435758,-2531.16433911,0.00038588,4]
[321486397,1712237435768,-158.17941836,0.00038588,4]
[321486398,1712237435779,-645.37364718,0.00038589,4]
[321486399,1712237435791,-155.42342081,0.00038589,4]
[321486400,1712237435803,-323.61289454,0.00038589,4]
[321486401,1712237435813,-304.19410505,0.0003859,4]
[321486402,1712237435823,-172.6030358,0.00038857,2]
[321486403,1712237435832,-157.84164802,0.00039555,2]
[321486404,1712237435841,-3582.31931441,0.0004,2]
[321486405,1712237435850,-4988.0,0.0004,2]
[321486406,1712237435860,-2212.7426662,0.0004,2]
[321486407,1712237435870,-271.12854955,0.0004,120]
[321486408,1712237435881,-8777.98648144,0.0004,2]
[321486409,1712237435891,-167.846865,0.0004,2]
[321486410,1712237435902,-153.768095,0.0004,2]
[321486411,1712237435914,-151.0,0.0004,2]
[321486412,1712237435924,-151.0,0.0004,2]
[321486413,1712237435935,-151.0,0.0004,2]
[321486414,1712237435947,-151.0,0.0004,2]
[321486415,1712237435959,-125.29703386,0.0004,2]
[321486416,1712237436391,-25.70296614,0.0004,2]
[321486417,1712237436404,-151.0,0.0004,2]
[321486418,1712237436415,-10939.16922962,0.0004013,2]
[321486419,1712237436429,-6702.68,0.0004013,2]
[321486420,1712237436443,-607.07253,0.0004013,2]
[321486477,1712237438589,-820.92416735,0.0004013,2]
[321486767,1712237446631,-3977.82026245,0.0004013,2]
[321486768,1712237446663,-1972.2201041,0.0004013,2]
[321486769,1712237446774,-415.11121662,0.0004013,2]
[321486770,1712237446790,-1550.9105361,0.0004013,2]
[321486771,1712237446800,-156.600756,0.0004013,2]
[321486772,1712237446809,-156.600756,0.0004013,2]
[321486773,1712237446818,-151.0,0.0004013,2]
[321486774,1712237446828,-151.0,0.0004013,2]
[321486775,1712237446838,-205.451278,0.0004013,2]
[321486776,1712237446847,-151.0,0.0004013,2]
[321486777,1712237446856,-97.61447468,0.0004013,2]
[321486779,1712237463068,-237.59747688,0.00036744,15]
[321486780,1712237463094,-390.70213506,0.00036744,15]
[321486781,1712237473834,-1340.77248748,0.00036743,4]
[321486782,1712237507503,-155.05271792,0.00038027,4]
[321486783,1712237507526,-729.0483622,0.00038028,2]
[321486784,1712237507548,-253.07308973,0.00038029,2]
[321486785,1712237507573,-236.18334616,0.0003803,2]
[321486786,1712237524758,-155.05271792,0.0003803,2]
[321486787,1712237530394,843.94728208,0.00036743,4]
[321486788,1712238376065,21834.52143539,0.00023,2]
[321486869,1712238633695,-924.5260946,0.00033135,4]
[321486871,1712238633704,-155.03720893,0.00033136,4]
[321486874,1712238633715,-729.0483622,0.00033137,2]
[321486876,1712238633725,-2634.7436324,0.00033137,4]
[321486877,1712238633734,-754.99257491,0.00033137,4]
[321486879,1712238633746,-1255.94852389,0.00033138,4]
[321486881,1712238633755,-248.95478592,0.00033138,4]
[321486883,1712238633765,-253.07308973,0.00033139,2]
[321486885,1712238633776,-157.64113523,0.00033144,2]
[321486887,1712238633786,-400.0,0.00033238,2]
[321486889,1712238633795,-400.0,0.00033238,2]
[321486891,1712238633805,-1062.19707423,0.00033248,4]
[321486893,1712238633815,-300.0,0.00034997,3]
[321486896,1712238633824,-1518.73996215,0.00034998,4]
[321486898,1712238633834,-278.03877127,0.00034998,4]
[321486899,1712238633844,-1355.49702627,0.00035,2]
[321486902,1712238633862,-11614.79770071,0.00035,2]
[321486987,1712238638697,-371.67946392,0.00033135,4]
[321486989,1712238638706,-7228.70527302,0.00035,2]
[321486991,1712238638716,-260.82404272,0.0003593,2]
[321486993,1712238638726,-560.0,0.00036562,2]
[321486995,1712238638735,-386.03041932,0.00036628,4]
[321486997,1712238638745,-167.8623105,0.00036743,4]
[321486999,1712238638755,-458.814309,0.00037028,2]
[321487001,1712238638764,-252.753858,0.00037269,120]
[321487003,1712238638773,-157.64113523,0.00037588,2]
[321487005,1712238638782,-429.29345233,0.00039456,2]
[321487007,1712238638791,-242.23655039,0.00039555,4]
[321487009,1712238638801,-331.18577868,0.00039555,4]
[321487011,1712238638810,-866.66281242,0.00039555,4]
[321487013,1712238638819,-215.29396627,0.00039555,4]
[321487016,1712238638828,-158.18477113,0.00039555,4]
[321487018,1712238638838,-155.0418613,0.00039555,4]
[321487020,1712238638846,-3710.75027405,0.00039556,4]
[321487022,1712238638855,-390.70213506,0.00039556,15]
[321487024,1712238638864,-237.59747688,0.00039556,15]
[321487026,1712238638874,-24900.0,0.00039557,2]
[321487028,1712238638883,-367.49767082,0.000399,2]
[321487030,1712238638893,-166.938419,0.0004,2]
[321487032,1712238638902,-2104.80277035,0.0004,7]
[321487034,1712238638911,-1313.69815947,0.00040029,2]
[321487036,1712238638920,-305.31148423,0.00040129,4]
[321487038,1712238638929,-156.32317295,0.00040129,4]
[321487040,1712238638938,-407.56553421,0.00040129,4]
[321487042,1712238638947,-171.225665,0.00040129,4]
[321487044,1712238638957,-357.90112473,0.00040129,4]
[321487046,1712238638966,-782.21993348,0.0004013,4]
[321487048,1712238638975,-783.0,0.00040218,3]
[321487050,1712238638984,-260.82404272,0.0004093,2]
[321487052,1712238638993,-157.0,0.00041,14]
[321487054,1712238639005,-166.666666,0.00041096,2]
[321487056,1712238639013,-500.0,0.00041096,31]
[321487058,1712238639022,-500.0,0.00041096,31]
[321487060,1712238639031,-619.61694086,0.00041096,31]
[321487062,1712238639041,-500.0,0.00041096,31]
[321487064,1712238639049,-500.0,0.00041096,31]
[321487066,1712238639058,-500.0,0.00041096,31]
[321487068,1712238639067,-500.0,0.00041096,31]
[321487070,1712238639077,-500.0,0.00041096,31]
[321487072,1712238639086,-500.0,0.00041096,31]
[321487074,1712238639095,-500.0,0.00041096,31]
[321487076,1712238639105,-500.0,0.00041096,31]
[321487078,1712238639114,-500.0,0.00041096,31]
[321487080,1712238639123,-500.0,0.00041096,31]
[321487082,1712238639132,-500.0,0.00041096,31]
[321487084,1712238639141,-500.0,0.00041096,31]
[321487086,1712238639150,-500.0,0.00041096,31]
[321487088,1712238639160,-429.29345231,0.0004121,2]
[321487090,1712238639169,-157.0,0.0004137,90]
[321487092,1712238639178,-172.182299,0.00042017,2]
[321487094,1712238639187,-157.64113523,0.00042031,2]
[321487096,1712238639197,-1330.59352937,0.00042394,4]
[321487098,1712238639206,-429.29345231,0.00042963,2]
[321487100,1712238639215,-157.0,0.00043151,90]
[321487102,1712238639224,-367.49767082,0.00043186,2]
[321487104,1712238639233,-150.395,0.00043205,2]
[321487106,1712238639242,-252.753858,0.0004348,120]
[321487108,1712238639253,-166.666666,0.000435,2]
[321487110,1712238639262,-202.501854,0.00043534,2]
[321487112,1712238639271,-202.501854,0.00043534,2]
[321487114,1712238639283,-202.501854,0.00043534,2]
[321487116,1712238639294,-251.3913325,0.00043836,30]
[321487118,1712238639308,-405.003708,0.00044034,2]
[321487120,1712238639317,-202.501854,0.00044034,2]
[321487122,1712238639326,-1097.0,0.0004424,3]
[321487124,1712238639337,-429.29345231,0.00044717,2]
[321487126,1712238639348,-3677.99833867,0.00045176,2]
[321487128,1712238639357,-4403.61698373,0.00045204,30]
[321487130,1712238639366,-151.0,0.00045205,7]
[321487132,1712238639377,-151.0,0.00045205,7]
[321487134,1712238639387,-160.0,0.00045308,90]
[321487136,1712238639396,-199.611994,0.00045328,30]
[321487138,1712238639405,-163.27154,0.00045328,30]
[321487140,1712238639415,-415.1112717,0.000455,30]
[321487142,1712238639424,-155.10352529,0.00045638,4]
[321487144,1712238639433,-151.0,0.0004579,7]
[321487146,1712238639442,-166.666666,0.00045904,2]
[321487148,1712238639451,-260.82404272,0.0004593,2]
[321487150,1712238639461,-5000.0,0.00045998,6]
[321487152,1712238639470,-12393.17175771,0.00046,2]
[321487154,1712238639479,-204.385525,0.00046,7]
[321487155,1712238639490,-151.0,0.00046,7]
[321487157,1712238639500,-151.0,0.00046,7]
[321487159,1712238639509,-151.0,0.00046,7]
[321487161,1712238639518,-151.0,0.00046,7]
[321487163,1712238639527,-235.439814,0.00046,7]
[321487165,1712238639537,-153.0,0.00046027,2]
[321487167,1712238639546,-200.70259025,0.00046059,2]
[321487169,1712238639556,-401.0925836,0.00046301,2]
[321487171,1712238639565,-153.0,0.00046301,2]
[321487173,1712238639575,-153.0,0.00046301,2]
[321487175,1712238639584,-153.0,0.00046301,2]
[321487177,1712238639593,-153.0,0.00046301,2]
[321487179,1712238639602,-2657.84104736,0.00046422,2]
[321487181,1712238639611,-153.0,0.00046455,2]
[321487183,1712238639620,-153.0,0.00046455,2]
[321487185,1712238639629,-153.0,0.00046455,2]
[321487187,1712238639638,-3525.726424,0.00046462,30]
[321487189,1712238639648,-429.29345231,0.0004647,2]
[321487191,1712238639657,-1500.0,0.0004647,2]
[321487193,1712238639666,-367.49767082,0.00046471,2]
[321487195,1712238639675,-157.64113523,0.00046475,2]
[321487197,1712238639683,-311.248409,0.000465,25]
[321487199,1712238639692,-5000.0,0.00046569,6]
[321487201,1712238639701,-1364.26290061,0.00046569,6]
[321487203,1712238639710,-151.0,0.00046569,7]
[321487205,1712238639719,-234.026232,0.00046569,7]
[321487207,1712238639728,-4102.01954007,0.0004657,5]
[321487209,1712238639738,-422.56115201,0.0004657,4]
[321487211,1712238639747,-1520.85622636,0.0004657,4]
[321487382,1712238641318,-2033.07067743,0.0004657,4]
[321487385,1712238641336,-2170.39624317,0.0004657,4]
[321487387,1712238641349,-18316.98737973,0.0004657,4]
[321487391,1712238641379,-389.58904298,0.0004657,4]
[321487447,1712238643937,-766.18055721,0.0004657,4]
[321487448,1712238643949,-6351.95175216,0.0004657,4]
[321487490,1712238769539,218.96,0.000199,5]
[321487503,1712238882771,304.95881727,0.0002104,15]
[321487708,1712239579845,205.86889953,0.0001894,2]
[321487709,1712239580152,205.86889953,0.0002394,2]
[321487710,1712239590052,-188.35868536,0.00028939,2]
[321487711,1712239590082,-197.98434783,0.0002894,2]
[321487712,1712239590229,-7.8845517,0.0002894,2]
[321487720,1712239713315,-738.01391682,0.0002894,2]
[321487721,1712239713390,-15.06150851,0.0002894,2]
[321487722,1712239733189,-871.65631316,0.0002894,2]
[321487723,1712239733307,-17.78890435,0.0002894,2]
[321487787,1712239832274,-248.95478592,0.00034298,4]
[321487788,1712239832284,-155.02170304,0.00034298,4]
[321487789,1712239832293,-155.02170304,0.00034299,4]
[321487790,1712239832303,-202.171108,0.00034301,2]
[321487791,1712239832312,-202.171108,0.00034301,120]
[321487792,1712239832322,-179.995171,0.0003481,120]
[321487793,1712239832332,-2113.164421,0.00034957,120]
[321487794,1712239832343,-1510.92182184,0.00034957,120]
[321487795,1712239832353,-252.3662821,0.00034993,4]
[321487796,1712239832362,-1018.97237617,0.00034998,4]
[321487797,1712239832372,-440.129515,0.00035027,2]
[321487799,1712239832382,-400.0,0.00035073,2]
[321487800,1712239832391,-400.0,0.00035073,2]
[321487801,1712239832401,-155.17217079,0.00035073,4]
[321487802,1712239832410,-1225.17864318,0.00035074,4]
[321487803,1712239832420,-300.0,0.00035074,3]
[321487804,1712239832429,-52393.71342555,0.00035075,4]
[321487913,1712239838596,-1146.378,0.00035075,4]
[321488261,1712239842426,-1112.99229828,0.00035075,4]
[321488330,1712239843025,-378.04000016,0.00035075,4]
[321488675,1712239845937,-8827.50728966,0.00035075,4]
[321488678,1712239845946,-353.99827844,0.00035075,7]
[321488681,1712239845956,-450.73535203,0.00035075,7]
[321488683,1712239845965,-372.90886046,0.00035075,7]
[321488686,1712239845974,-6019.0,0.00035076,2]
[321488689,1712239845983,-184.213074,0.00035078,2]
[321488692,1712239845993,-484.86308502,0.0003614,7]
[321488695,1712239846002,-266.11482381,0.00036238,2]
[321488698,1712239846012,-255.33962954,0.0003624,2]
[321488701,1712239846022,-24900.0,0.00036962,2]
[321488704,1712239846031,-7388.02573546,0.0003755,5]
[321488707,1712239846041,-560.0,0.0003858,3]
[321488710,1712239846049,-155.02170304,0.0003889,7]
[321488713,1712239846058,-153.61091687,0.0003993,7]
[321488716,1712239846067,-167.846865,0.0004,2]
[321488719,1712239846076,-179.995171,0.00040612,120]
[321488722,1712239846085,-402.1796601,0.00041096,31]
[321488724,1712239846094,-500.0,0.00041096,31]
[321488727,1712239846103,-783.0,0.00042438,3]
[321488730,1712239846111,-547.51435267,0.00043816,15]
[321488733,1712239846120,-155.21898409,0.00044117,2]
[321488736,1712239846130,-155.02635448,0.00044118,4]
[321488739,1712239846139,-816.67027557,0.00044369,2]
[321488742,1712239846148,-509.50751117,0.00044468,4]
[321488745,1712239846158,-982.31241851,0.00044469,4]
[321488748,1712239846167,-4791.15173585,0.00045,120]
[321488751,1712239846177,-10000.0,0.0004519,30]
[321488754,1712239846186,-5000.0,0.00045205,6]
[321488757,1712239846195,-153.0,0.00045479,2]
[321488760,1712239846204,-404.0918438,0.00045753,2]
[321488763,1712239846214,-153.0,0.00045981,2]
[321488766,1712239846225,-153.0,0.00046027,2]
[321488769,1712239846234,-153.0,0.00046027,2]
[321488772,1712239846244,-153.0,0.00046027,2]
[321488773,1712239846270,-153.0,0.00046027,2]
[321488775,1712239846281,-771.02432504,0.000463,2]
[321488777,1712239846291,-179.995171,0.00046413,120]
[321488779,1712239846300,-155.02635448,0.00046565,4]
[321488781,1712239846309,-1720.64336373,0.00046568,4]
[321488783,1712239846319,-287.69898369,0.00046568,4]
[321488786,1712239846329,-1259.52525825,0.00046568,4]
[321488789,1712239846340,-807.30445512,0.00046568,4]
[321488792,1712239846349,-155.38061192,0.00046568,4]
[321488795,1712239846359,-186.10441294,0.00046568,4]
[321488798,1712239846368,-373.72424638,0.00046568,4]
[321488801,1712239846377,-1892.59435284,0.00046568,4]
[321488804,1712239846386,-287.73427922,0.00046568,4]
[321488807,1712239846395,-170.67194266,0.00046568,4]
[321488810,1712239846404,-2051.00977004,0.0004657,5]
[321488813,1712239846413,-425.21255481,0.0004657,4]
[321488816,1712239846422,-10162.78842978,0.0004657,4]
[321488819,1712239846432,-153.450078,0.0004657,7]
[321488821,1712239846440,-151.0,0.0004657,7]
[321488824,1712239846449,-162.454989,0.0004657,7]
[321488826,1712239846459,-151.0,0.0004657,7]
[321488829,1712239846469,-151.0,0.0004657,7]
[321488834,1712239846478,-151.0,0.0004657,7]
[321488836,1712239846488,-477.65562487,0.00046571,4]
[321488838,1712239846497,-1062.95629619,0.00046571,4]
[321488841,1712239846507,-542.70380695,0.00046571,4]
[321488844,1712239846516,-171.78466787,0.00046571,4]
[321488847,1712239846526,-151.0,0.00046571,7]
[321488851,1712239846536,-155.12720431,0.00046572,4]
[321488853,1712239846545,-155.41426369,0.00046572,4]
[321488856,1712239846554,-210.0400474,0.00046572,4]
[321488859,1712239846564,-1285.29190836,0.00046572,4]
[321488862,1712239846573,-1076.94311226,0.00046573,4]
[321488865,1712239846582,-117981.61598212,0.00046574,3]
[321488868,1712239846591,-151.0,0.00046574,7]
[321488871,1712239846601,-151.0,0.00046574,7]
[321488874,1712239846610,-151.0,0.00046574,7]
[321488876,1712239846619,-181.33077631,0.00046575,120]
[321488878,1712239846629,-155.12565178,0.00046575,31]
[321488880,1712239846638,-896.45914613,0.00046575,40]
[321488882,1712239846648,-500.0,0.00046575,5]
[321488884,1712239846657,-500.0,0.00046575,5]
[321488886,1712239846668,-500.0,0.00046575,5]
[321488888,1712239846678,-500.0,0.00046575,5]
[321488890,1712239846687,-500.0,0.00046575,5]
[321488892,1712239846697,-500.0,0.00046575,5]
[321488894,1712239846706,-500.0,0.00046575,5]
[321488895,1712239846716,-500.0,0.00046575,5]
[321488898,1712239846726,-500.0,0.00046575,5]
[321488899,1712239846736,-500.0,0.00046575,5]
[321488902,1712239846752,-500.0,0.00046575,5]
[321488903,1712239846766,-340.90157756,0.00046575,5]
[321488905,1712239846778,-500.0,0.00046575,5]
[321488907,1712239846792,-500.0,0.00046575,5]
[321488909,1712239846801,-500.0,0.00046575,5]
[321488912,1712239846812,-500.0,0.00046575,5]
[321488913,1712239846821,-633.33409905,0.00046575,5]
[321488915,1712239846831,-501.44828563,0.00046575,5]
[321488918,1712239846841,-500.0,0.00046575,5]
[321488920,1712239846852,-455.67180676,0.00046575,5]
[321488922,1712239846862,-500.0,0.00046575,5]
[321488923,1712239846871,-500.0,0.00046575,5]
[321488926,1712239846881,-500.0,0.00046575,5]
[321488927,1712239846892,-500.0,0.00046575,5]
[321488929,1712239846903,-515.11,0.00046575,5]
[321488931,1712239846911,-500.0,0.00046575,5]
[321488933,1712239846921,-500.0,0.00046575,5]
[321488935,1712239846930,-500.0,0.00046575,5]
[321488937,1712239846939,-500.0,0.00046575,5]
[321488939,1712239846948,-500.58590569,0.00046575,5]
[321488941,1712239846957,-500.0,0.00046575,5]
[321488943,1712239846967,-511.70612958,0.00046575,5]
[321488945,1712239846976,-597.36,0.00046575,5]
[321488947,1712239846985,-500.0,0.00046575,5]
[321488949,1712239846994,-500.0,0.00046575,5]
[321488951,1712239847003,-500.0,0.00046575,5]
[321488953,1712239847013,-500.0,0.00046575,5]
[321488956,1712239847023,-500.0,0.00046575,5]
[321488958,1712239847035,-921.56,0.00046575,5]
[321488960,1712239847043,-500.0,0.00046575,5]
[321488962,1712239847052,-500.0,0.00046575,5]
[321488974,1712239847153,-600.36170822,0.00046575,5]
[321488976,1712239847162,-505.06974009,0.00046575,5]
[321488978,1712239847172,-506.68165255,0.00046575,5]
[321488979,1712239847181,-500.0,0.00046575,5]
[321488981,1712239847191,-500.0,0.00046575,5]
[321488983,1712239847200,-500.0,0.00046575,5]
[321488985,1712239847209,-500.0,0.00046575,5]
[321488987,1712239847218,-500.0,0.00046575,5]
[321488989,1712239847228,-500.0,0.00046575,5]
[321488991,1712239847237,-500.0,0.00046575,5]
[321488993,1712239847250,-500.0,0.00046575,5]
[321488995,1712239847259,-500.0,0.00046575,5]
[321488997,1712239847271,-500.0,0.00046575,5]
[321488999,1712239847280,-500.0,0.00046575,5]
[321489001,1712239847290,-500.0,0.00046575,5]
[321489003,1712239847300,-500.0,0.00046575,5]
[321489005,1712239847309,-500.0,0.00046575,5]
[321489007,1712239847319,-501.19629657,0.00046575,5]
[321489009,1712239847328,-500.0,0.00046575,5]
[321489011,1712239847337,-500.0,0.00046575,5]
[321489013,1712239847347,-500.0,0.00046575,5]
[321489015,1712239847356,-536.65531371,0.00046575,5]
[321489017,1712239847365,-500.0,0.00046575,5]
[321489019,1712239847375,-501.97432203,0.00046575,5]
[321489021,1712239847384,-500.0,0.00046575,5]
[321489023,1712239847394,-500.0,0.00046575,5]
[321489025,1712239847402,-502.33761712,0.00046575,5]
[321489027,1712239847411,-500.0,0.00046575,5]
[321489029,1712239847420,-503.04118776,0.00046575,5]
[321489031,1712239847429,-500.0,0.00046575,5]
[321489033,1712239847438,-501.73623679,0.00046575,5]
[321489035,1712239847447,-500.0,0.00046575,5]
[321489037,1712239847456,-506.90873503,0.00046575,5]
[321489039,1712239847464,-500.27775098,0.00046575,5]
[321489041,1712239847474,-1423.0,0.00046575,5]
[321489043,1712239847483,-604.43672927,0.00046575,5]
[321489045,1712239847492,-500.0,0.00046575,5]
[321489047,1712239847507,-500.0,0.00046575,5]
[321489049,1712239847516,-500.0,0.00046575,5]
[321489051,1712239847526,-500.0,0.00046575,5]
[321489053,1712239847535,-500.0,0.00046575,5]
[321489054,1712239847544,-500.0,0.00046575,5]
[321489056,1712239847553,-500.0,0.00046575,5]
[321489058,1712239847562,-500.0,0.00046575,5]
[321489060,1712239847571,-500.0,0.00046575,5]
[321489062,1712239847580,-604.72168741,0.00046575,5]
[321489064,1712239847589,-500.0,0.00046575,5]
[321489066,1712239847599,-500.0,0.00046575,5]
[321489068,1712239847608,-500.0,0.00046575,5]
[321489070,1712239847617,-500.0,0.00046575,5]
[321489072,1712239847626,-503.35418185,0.00046575,5]
[321489074,1712239847636,-500.0,0.00046575,5]
[321489076,1712239847647,-3403.55,0.00046575,5]
[321489078,1712239847658,-330.20461828,0.00046575,5]
[321489081,1712239847668,-155.10391963,0.00046575,5]
[321489082,1712239847677,-500.0,0.00046575,5]
[321489084,1712239847688,-500.0,0.00046575,5]
[321489086,1712239847697,-511.44082036,0.00046575,5]
[321489088,1712239847706,-500.0,0.00046575,5]
[321489090,1712239847716,-500.0,0.00046575,5]
[321489092,1712239847725,-500.0,0.00046575,5]
[321489094,1712239847735,-516.40081003,0.00046575,2]
[321489096,1712239847745,-548.25922446,0.00046575,5]
[321489098,1712239847758,-576.21021168,0.00046575,5]
[321489100,1712239847768,-504.25794977,0.00046575,5]
[321489102,1712239847778,-500.0,0.00046575,5]
[321489105,1712239847789,-6363.18,0.00046575,5]
[321489107,1712239847800,-501.65349954,0.00046575,5]
[321489109,1712239847810,-1264.29,0.00046575,5]
[321489110,1712239847819,-507.52297807,0.00046575,5]
[321489112,1712239847828,-500.0,0.00046575,5]
[321489114,1712239847838,-625.36,0.00046575,5]
[321489117,1712239847848,-1186.77,0.00046575,5]
[321489119,1712239847857,-500.0,0.00046575,5]
[321489120,1712239847867,-764.19,0.00046575,5]
[321489123,1712239847877,-400.0,0.00046575,5]
[321489124,1712239847886,-500.0,0.00046575,5]
[321489126,1712239847896,-500.0,0.00046575,5]
[321489127,1712239847905,-927.2,0.00046575,5]
[321489128,1712239847914,-500.0,0.00046575,5]
[321489129,1712239847923,-500.0,0.00046575,5]
[321489130,1712239847932,-500.0,0.00046575,5]
[321489131,1712239847941,-399.21747878,0.00046575,5]
[321489132,1712239847950,-610.4283532,0.00046575,5]
[321489133,1712239847960,-500.0,0.00046575,5]
[321489134,1712239847969,-151.0,0.00046575,7]
[321489135,1712239847978,-151.0,0.00046575,7]
[321489136,1712239847987,-151.0,0.00046575,7]
[321489137,1712239848000,-151.0,0.00046575,7]
[321489138,1712239848009,-151.0,0.00046575,7]
[321489139,1712239848023,-151.0,0.00046575,7]
[321489140,1712239848033,-500.0,0.00046575,5]
[321489141,1712239848042,-151.0,0.00046575,7]
[321489142,1712239848051,-151.0,0.00046575,7]
[321489143,1712239848060,-151.0,0.00046575,7]
[321489144,1712239848070,-251.813604,0.00046575,7]
[321489145,1712239848080,-500.0,0.00046575,5]
[321489146,1712239848089,-500.0,0.00046575,5]
[321489147,1712239848098,-578.41,0.00046575,5]
[321489148,1712239848107,-500.0,0.00046575,5]
[321489149,1712239848117,-500.0,0.00046575,5]
[321489150,1712239848126,-500.0,0.00046575,5]
[321489151,1712239848136,-500.0,0.00046575,5]
[321489152,1712239848145,-500.0,0.00046575,5]
[321489153,1712239848155,-500.0,0.00046575,5]
[321489154,1712239848166,-500.0,0.00046575,5]
[321489155,1712239848176,-578.14621649,0.00046575,5]
[321489157,1712239848185,-502.09,0.00046575,5]
[321489158,1712239848194,-500.0,0.00046575,5]
[321489159,1712239848203,-500.0,0.00046575,5]
[321489161,1712239848212,-500.0,0.00046575,5]
[321489163,1712239848224,-501.83887078,0.00046575,5]
[321489165,1712239848233,-506.68,0.00046575,5]
[321489167,1712239848241,-532.52,0.00046575,5]
[321489169,1712239848259,-528.47090478,0.00046575,5]
[321489171,1712239848269,-500.0,0.00046575,5]
[321489173,1712239848279,-500.0,0.00046575,5]
[321489175,1712239848288,-503.18500097,0.00046575,5]
[321489177,1712239848297,-151.0,0.00046575,7]
[321489179,1712239848307,-500.0,0.00046575,5]
[321489181,1712239848317,-151.0,0.00046575,7]
[321489183,1712239848325,-151.0,0.00046575,7]
[321489185,1712239848335,-151.0,0.00046575,7]
[321489187,1712239848344,-429.50780137,0.00046575,5]
[321489188,1712239848353,-151.0,0.00046575,7]
[321489190,1712239848363,-151.0,0.00046575,7]
[321489192,1712239848373,-151.0,0.00046575,7]
[321489194,1712239848384,-205.294288,0.00046575,7]
[321489196,1712239848394,-500.0,0.00046575,5]
[321489198,1712239848403,-500.0,0.00046575,5]
[321489200,1712239848413,-158.60627888,0.00046575,5]
[321489202,1712239848423,-500.0,0.00046575,5]
[321489204,1712239848432,-16939.55,0.00046575,5]
[321489206,1712239848442,-500.0,0.00046575,5]
[321489208,1712239848451,-490.80510144,0.00046575,5]
[321489210,1712239848460,-500.0,0.00046575,5]
[321489212,1712239848469,-500.0,0.00046575,5]
[321489214,1712239848478,-500.0,0.00046575,5]
[321489216,1712239848486,-2997.81,0.00046575,5]
[321489218,1712239848495,-500.0,0.00046575,5]
[321489220,1712239848509,-500.0,0.00046575,5]
[321489222,1712239848519,-7663.65,0.00046575,5]
[321489224,1712239848529,-569.17719783,0.00046575,5]
[321493619,1712239896989,-193.17229372,0.00035075,7]
[321493753,1712240894836,300.0,0.0003022,22]
[321493842,1712241038144,-247.16229393,0.00032975,2]
[321493844,1712241038155,-586.30303489,0.0003696,4]
[321493846,1712241038165,-597.26997179,0.0003696,4]
[321493848,1712241038176,-249.50360735,0.00036961,4]
[321493850,1712241038187,-247.16229393,0.00037975,2]
[321493852,1712241038197,-166.938419,0.0004,2]
[321493854,1712241038206,-179.0562486,0.00041359,2]
[321493856,1712241038215,-550.0,0.00041373,3]
[321493858,1712241038224,-550.0,0.00041373,5]
[321493859,1712241038233,-3125.06154054,0.00041374,2]
[321493865,1712241038273,-562.04874569,0.00041374,2]
[321493867,1712241038284,-6536.40000004,0.00041374,2]
[321494129,1712241040958,-13733.8053618,0.00041374,2]
[321494135,1712241041158,-942.68435193,0.00041374,2]
[321494137,1712241041167,-203.4192152,0.00041599,2]